Cogmind - Beta 14 @@@ ROGUE MODE // 2024.08.14 @ 10:36:42 Player: Bits_and_Bytes Result: Destroyed by D-53 Grenadier with Mini Grenade Launcher Performance ------------- Evolutions (0) 0 Regions Visited (2) 400 Robots Destroyed (19) 95 Value Destroyed (262) 262 Prototype IDs (0) 0 Alien Tech Used (0) 0 Bonus (0) 0 TOTAL SCORE: 757 Bonus ------- None Cogmind --------- Core Integrity 0/250 Matter 275/300 Energy 255/265 System Corruption 2% Temperature Cool (0) Movement Treading (160) Location -10/Mines Parts ------- > --- POWER (1) -------- Improved Ion Engine > --- PROPULSION (2) --- Light Treads Light Treads > --- UTILITY (2) ------ Large Storage Unit Improved Terrain Scanner > --- WEAPON (2) ------- Beam Cannon Beam Cannon > --- INVENTORY (15) --- Light Nuclear Core Light Treads Light Treads High-capacity Storage Unit Signal Interpreter Transport Network Coupler Targeting Computer Core Shielding Core Shielding Medium Laser Beam Cannon Light Assault Rifle Grenade Launcher Mining Claw Peak State ------------ > --- POWER ------------ Improved Ion Engine > --- PROPULSION ------- Aluminum Leg Aluminum Leg > --- UTILITY ---------- Large Storage Unit Improved Terrain Scanner > --- WEAPON ----------- Medium Laser Assault Rifle > --- INVENTORY -------- Light Ion Engine Light Treads Light Treads Light Treads High-capacity Storage Unit Signal Interpreter Transport Network Coupler Targeting Computer Core Shielding Beam Cannon Beam Cannon Beam Cannon Light Assault Rifle Grenade Launcher Mining Claw [Rating: 11] Favorites ----------- Power Light Ion Engine Engine Light Ion Engine Propulsion Aluminum Leg Treads Light Treads Leg Aluminum Leg Wheel Compact Wheel Utility Large Storage Unit Device Improved Terrain Scanner Storage Large Storage Unit Protection Core Shielding Weapon Assault Rifle Energy Gun Medium Laser Energy Cannon Beam Cannon Ballistic Gun Assault Rifle Launcher Grenade Launcher Slashing Weapon Mining Claw Build | -11 -10 -10 ------- Run | Yrd Mat Min Slots Evolved . | . . . Power . | . . . Propulsion . | . . . Utility . | . . . Weapon . | . . . Parts Attached 26 | 7 16 3 Power 3 | 1 2 . Engine 3 | 1 2 . Core . | . . . Reactor . | . . . Propulsion 8 | 2 6 . Treads 5 | 2 3 . Leg 2 | . 2 . Wheel 1 | . 1 . Hover . | . . . Flight . | . . . Utility 7 | 2 5 . Device 4 | 1 3 . Storage 2 | 1 1 . Processor . | . . . Hackware . | . . . Protection 1 | . 1 . Artifact . | . . . Weapon 8 | 2 3 3 Energy Gun 2 | . 2 . Energy Cannon 2 | . . 2 Ballistic Gun 2 | 2 . . Ballistic Cannon . | . . . Launcher 1 | . 1 . Special Weapon . | . . . Impact Weapon . | . . . Slashing Weapon 1 | . . 1 Piercing Weapon . | . . . Special Melee Weapon . | . . . Unidentified Prototypes . | . . . Parts Lost 1 | . . 1 Power . | . . . Propulsion . | . . . Utility . | . . . Weapon 1 | . . 1 Highest Loss Streak 1 | . . 1 To Critical Strikes . | . . . Average Slot Usage (%) 99 | . 100 97 Engine 14 | . 14 14 Treads 6 | . 4 28 Leg 19 | . 21 . Wheel 1 | . 1 . Device 10 | . 9 14 Storage 14 | . 14 14 Protection 3 | . 4 . Energy Gun 11 | . 12 7 Ballistic Gun 14 | . 14 9 Launcher 1 | . 1 . Peak Build Rating 11 | 9 11 11 Average Rating 9 | 6 9 10 On Entrance 6 | . 9 11 Naked Turns . | . . . Heaviest Build 33 | 12 32 33 Greatest Support 40 | 40 40 40 Greatest Overweight (x) 3 | 3 1 . Average Overweight (x) . | . . . Largest Inventory Capacity 15 | 8 15 15 Average Capacity 13 | 7 13 15 Most Carried 15 | 7 15 15 Average Carried 11 | 4 12 14 Final Capacity 15 | 8 15 15 Final Carried 15 | 7 15 14 Class Distribution -------------------- 100% | Mutant Dominant Class ---------------- Mutant | -10/Materials Mutant | -10/Mines Resources | -11 -10 -10 ----------- Run | Yrd Mat Min Matter Collected 624 | 295 314 15 Remotely . | . . . Salvage Created 447 | 35 375 37 Parts 32 | 4 21 7 Haulers Intercepted 2 | . 2 . Recyclers Shooed . | . . . Parts Field Recycled . | . . . Retrieved Matter . | . . . Parts Self-Destructed . | . . . Prevented . | . . . Kills | -11 -10 -10 ------- Run | Yrd Mat Min Combat Hostiles Destroyed 11 | . 9 2 Guns 11 | . 9 2 Classes Destroyed 6 | 1 5 . Worker 1 | . 1 . Tunneler 2 | 2 . . Hauler 2 | . 2 . Watcher 3 | . 3 . Swarmer 8 | . 6 2 Grunt 3 | . 3 . Best Kill Streak 6 | 2 6 2 Combat Bots Only 6 | . 6 2 Max Kills in Single Turn 2 | 1 2 1 Gunslinging 1 | . 1 . Exploded . | . . . Melee . | . . . Uniques/NPCs Destroyed . | . . . Combat | -11 -10 -10 -------- Run | Yrd Mat Min Hostile Shots Fired 62 | . 48 14 Missed 14 | . 11 3 Damage Taken 872 | . 367 505 Core 261 | . 79 182 Absorbed by Shields . | . . . Redirected to Shielding 5 | . 5 . Regen/Repaired (Parts) 55 | . 55 . Core Remaining (%) 100 | 100 . . Volleys Fired 48 | 9 34 5 Largest 2 | 2 2 2 Hottest 70 | 40 70 70 Shots Fired 95 | 18 67 10 Gun 90 | 18 62 10 Cannon . | . . . Launcher 5 | . 5 . Special . | . . . Kinetic 57 | 18 34 5 Thermal 33 | . 28 5 Explosive 5 | . 5 . Electromagnetic . | . . . Robot Hit Streak 8 | 6 8 1 Robot Miss Streak 6 | 2 4 6 Penetration Max . | . . . Secondary Targets 6 | . 5 1 Max Gunslinging Chain 1 | . 1 1 Shots Hit Robots 53 | 12 39 2 Core Hits 26 | 4 20 2 Critical Kills 1 | . 1 . Critical Parts Destroyed 1 | . 1 . Critical Strikes 4 | . 4 . Burn 2 | . 2 . Destroy 2 | . 2 . Melee Attacks 8 | . . 8 Impact . | . . . Slashing 8 | . . 8 Piercing . | . . . Sneak Attacks . | . . . Combat Hostiles . | . . . Follow-up Attacks . | . . . Damage Inflicted 822 | 113 687 22 Guns 652 | 113 517 22 Cannons . | . . . Explosions 161 | . 161 . Melee . | . . . Ramming 9 | . 9 . Kinetic 426 | 113 303 10 Thermal 226 | . 214 12 Explosive 161 | . 161 . Electromagnetic . | . . . Impact . | . . . Slashing . | . . . Piercing . | . . . Highest Corruption 2 | . . 2 Average Corruption 2 | . . 2 Corruption Purged . | . . . Corruption Blocked . | . . . Effects 1 | . . 1 Message Errors 1 | . . 1 Overload Shots . | . . . Overflow Damage 4 | . 4 . Projectiles . | . . . Explosions 4 | . 4 . Melee . | . . . Knockbacks . | . . . Impact . | . . . Kinetic . | . . . Secondary . | . . . Self-Inflicted Damage . | . . . Shots . | . . . Rammed 1 | . 1 . Targets Rammed 2 | . 2 . Kicked 1 | . 1 . Crushed . | . . . Highest Temperature 87 | . 87 60 Average Temperature 25 | . 24 30 Received Heat Transfer 51 | . 51 . Siege Activations . | . . . Robots Corrupted . | . . . Combat Hostiles . | . . . Parts Fried . | . . . Impact Corruptions . | . . . Robots Melted . | . . . Combat Hostiles . | . . . Parts Melted 2 | . 2 . Heat Transferred 814 | . 777 37 Parts Sabotaged . | . . . Parts Stolen . | . . . Parts Stripped . | . . . Power Chain Reactions . | . . . Alert | -11 -10 -10 ------- Run | Yrd Mat Min Peak Influence 176 | 10 176 65 Initial 13 | . 6 13 Average 51 | 3 55 57 Maximum Alert Level . | . . . Low Security (%) 100 | 100 100 100 Level 1 . | . . . Level 2 . | . . . Level 3 . | . . . Level 4 . | . . . Level 5 . | . . . High Security . | . . . Max Security . | . . . Squads Dispatched 2 | . 2 . Investigation 1 | . 1 . Extermination . | . . . Reinforcement 1 | . 1 . Assault . | . . . Garrison . | . . . Intercept . | . . . Searches Triggered . | . . . Construction Impeded . | . . . Haulers Reinforced . | . . . Active Scanning Responses . | . . . Cargo Convoy Interrupts . | . . . Stealth | -11 -10 -10 --------- Run | Yrd Mat Min Distress Signals 1 | . 1 . Communications Jammed . | . . . Distress Signals . | . . . Times Spotted 25 | . 14 11 Peak Tracking Total 6 | . 6 6 Tactical Retreats . | . . . Traps | -11 -10 -10 ------- Run | Yrd Mat Min Traps Triggered 2 | . 2 . Indirectly . | . . . Trap Hack Attempts . | . . . Triggered . | . . . Disarmed . | . . . Reprogrammed . | . . . Reused . | . . . Traps Extracted . | . . . Installed . | . . . Triggered . | . . . Machines | -11 -10 -10 ---------- Run | Yrd Mat Min Machines Disabled . | . . . Max in Single Turn . | . . . Machines Repaired . | . . . Machines Dismantled . | . . . Machines Sabotaged . | . . . Overloaded Fab Kills . | . . . Hacking | -11 -10 -10 --------- Run | Yrd Mat Min Machines Accessed 8 | . 8 . Terminals 6 | . 6 . Fabricators . | . . . Repair Stations 1 | . 1 . Recycling Units 1 | . 1 . Scanalyzers . | . . . Garrison Access . | . . . Total Hacks 20 | . 20 . Successful 16 | . 16 . Failed 4 | . 4 . Catastrophic . | . . . Database Lockouts . | . . . Manual 18 | . 18 . Terminals 16 | . 16 . Fabricators . | . . . Repair Stations 3 | . 3 . Recycling Units 1 | . 1 . Scanalyzers . | . . . Garrison Access . | . . . Terminal Hacks 2 | . 2 . Alert Level 1 | . 1 . Locate Traps 1 | . 1 . Fabricator Hacks . | . . . Repair Station Hacks 2 | . 2 . Scan Component 1 | . 1 . Repair 1 | . 1 . Recycling Unit Hacks . | . . . Scanalyzer . | . . . Garrison Access Hacks . | . . . Unauthorized Hacks 12 | . 12 . Terminals 11 | . 11 . Track 2 | . 2 . Assimilate 2 | . 2 . Botnet 6 | . 6 . Operators 1 | . 1 . Fabricators . | . . . Repair Stations . | . . . Recycling Units 1 | . 1 . Mask 1 | . 1 . Scanalyzers . | . . . Garrison Access . | . . . Data Cores Recovered . | . . . Used . | . . . Hacking Detections 6 | . 6 . Full Trace Events 1 | . 1 . Feedback Events . | . . . Feedback Blocked . | . . . Robot Schematics Acquired . | . . . Robots Built . | . . . Authchips . | . . . Time . | . . . Total Robot Build Rating . | . . . Part Schematics Acquired . | . . . Parts Built . | . . . Authchips . | . . . Time . | . . . Total Part Build Rating . | . . . Parts Repaired 1 | . 1 . Time 26 | . 26 . Parts Recycled . | . . . Recycled Matter . | . . . Retrieved Matter . | . . . Retrieved Components . | . . . Parts Scanalyzed . | . . . Part Schematics Acquired . | . . . Parts Damaged . | . . . Bothacking | -11 -10 -10 ------------ Run | Yrd Mat Min Used RIF Installer . | . . . Robots Hacked . | . . . Non-combat . | . . . Combat . | . . . Robot Hacks Applied . | . . . Relay Couplers Released . | . . . Fabnet Peak Effective % . | . . . Robots Rewired . | . . . Allies Hacked . | . . . Hacks Repelled . | . . . Allies | -11 -10 -10 -------- Run | Yrd Mat Min Total Allies . | . . . Largest Group . | . . . Highest-Rated Group . | . . . Highest-Rated Ally . | . . . Total Orders . | . . . Ally Attacks . | . . . Total Damage . | . . . Kills . | . . . Allies Corrupted . | . . . Allies Melted . | . . . Intel | -11 -10 -10 ------- Run | Yrd Mat Min Robot Analysis Total . | . . . Derelict Logs Recovered 1 | . . 1 Drone Launches . | . . . Drone Recoveries . | . . . Exploration | -11 -10 -10 ------------- Run | Yrd Mat Min Turns Passed 2368 | 166 2002 200 Spaces Moved 1180 | 78 1005 97 Core 8 | 8 . . Treads 362 | 70 195 97 Legs 644 | . 644 . Wheels 166 | . 166 . Hover . | . . . Flight . | . . . Fastest Speed 50 | 50 100 160 Average Speed 165 | 155 166 160 Slowest Speed 200 | 200 190 160 Overloaded Moves . | . . . Propulsion Burnouts . | . . . Robots Hopped . | . . . Cave-ins Triggered 1 | . . 1 Exploration Rate (%) 41 | 6 97 21 Regions Visited 2 Branch Regions 1 Pre-discovered Areas . | . . . Known Exits Taken . | . . . Unknown Exits Taken 2 | 1 1 . Scrap Searched . | . . . Spaces Dug 4 | . . 4 Terrain Destroyed 11 | . 7 4 Melee 4 | . . 4 Projectile . | . . . AOE 7 | . 7 . Terrain Rammed . | . . . Walls Destroyed . | . . . Machines Disabled . | . . . Actions | -11 -10 -10 --------- Run | Yrd Mat Min Total 1480 | 103 1263 114 Wait 183 | 3 179 1 Move 1178 | 77 1004 97 Hop . | . . . Pick Up 24 | 7 17 . Fast Attach 8 | 7 1 . Attach 3 | . 2 1 Detach . | . . . Swap 15 | . 13 2 Drop 11 | . 11 . Fire 48 | 9 34 5 Melee 8 | . . 8 Ram . | . . . Kick 1 | . 1 . Crush 1 | . 1 . Escape Stasis . | . . . Rewire . | . . . Trap . | . . . Miscellaneous . | . . . Route ------- -11/Scrapyard -10/Materials (discovered 5 exits: [*Mat x3] / [*Min] / [*Sub]) -10/Mines (discovered 1 exit: [*Mat]) History --------- Turn | Location | Event 12 | -11/Scrapyard | Discovered new exit (range 15) 167 | -11/Scrapyard | Entered Materials 312 | -10/Materials | Build established: Mutant 525 | -10/Materials | Discovered new exit (range 5) 955 | -10/Materials | Discovered new exit (range 15) 1423 | -10/Materials | Discovered new exit (range 5) 1444 | -10/Materials | Discovered new exit (range 6) 1656 | -10/Materials | Discovered new exit (range 13) 1913 | -10/Materials | Repaired Lgt. Treads 2169 | -10/Materials | Entered Mines 2224 | -10/Mines | Learned location of 1 exit from Materials 2300 | -10/Mines | Crushed by falling debris 2300 | -10/Mines | Core integrity fell below 50% 2300 | -10/Mines | Core integrity fell below 20% 2309 | -10/Mines | Discovered new exit (range 6) 2346 | -10/Mines | Assembled infested the area 2369 | -10/Mines | Destroyed by D-53 Grenadier with Mini Grenade Launcher Last Messages --------------- 02224_ Acquired derelict log, extracted data. Data stored: Materials exits (x1). 02300_ The unstable cave ceiling collapses. 02300_ Crushed by falling debris. 02300_ Assault Rifle destroyed. 02300_ System corrupted by crushing effect (+2). 02308_ U-05 Engineer builds a Wall. 02309_ EXIT=FOUND 02335_ K-01 Serf collects debris. 02346_ ALERT: Infestation in the mines, dispatching Demolisher response squad. 02348_ K-01 Serf collects debris. 02350_ 18ZER VQ0F#&W4HTB#/U%KCT2JZ2 02351_ K-01 Serf collects debris. 02358_ K-01 Serf destroyed. 02361_ D-53 Grenadier unfolds itself. 02361_ as-77223 destroyed. 02363_ as-89023 powers down. 02363_ as-59182 powers down. 02364_ as-62226 destroyed. Map ----- +----------------------------------------------------+ | ?????????????????????????????????????????????????? | | ?????????????????????????????????????????????????? | | ?????????????????????????????????????#????#??????? | | ??????????????????????????????????##???????#?????? | | ???????????????????????????????????############??? | | ????????????????????????????? #??? | | ????????????????????????????????????######### #??? | | ????????????????????????????????????#?#??#??# #??? | | ????????????????????????????????????????????# #??? | | ????????????????????????????????????????????# #??? | | ???????????????????????????????? ???????????# #??? | | ???????????????????????????????????# ??#????# #??? | | ???????????????????????????????????? ?#?##??# #??? | | ???????????????????????????????????? ???#??## #??? | | ??????????????????????????#??????#?? ?????## ##?# | | ???????????????????????????#?????#?? ???### ## | | ???????????????????????????????#???? ????# | | ???????????????????????????????????# #?#?# | | ????????????????????????###?#?###?#? #?#### | | ???????????????????????? #???# ### ##??#### # | | ????????????????#???????# #?#?? #????#?# ### | | ?????????????????#??????# #????? ??##??# #?? | | ??????????????????#?????# ##????? < ??##### #?? | | ?????????????##??## ?### ###???? #???#=%=* #?? | | ??????????? ### ??# #?????# #???#*##[ ##? | | ??????????? ?#?# @ #??##?# #####%## ## | | ?????????? ### ###?#??# ## =[ # | | ?????????? ##???# "# [%= | | ?????????? = dd #????# ## * | | ?????????? % #####?# #"### | | ???????????# % #?# ##??## ## | | ???????????## ### #?# ############# | | ?????????? ?#### ### ### #???#???? | | ???????????????#### #?# ### #?????#?? | | ??????????????????## ####?#### #???????????# | | ??????????????????# ##???????# ###????#??????? | | ??????????????????# ##???#??#?# #?#????????#??? | | ??????????????????# ###?????????# #???? ????????? | | ??????????????????###????????#??## #????????????#? | | ??????????????????????????#??????# ?? ??????????? | | ???????????????#????#???????????# ?????????????? | | ??????????? ????????????????????? ??????????#??? | | ??????????????????? ?????????????# ? ???????????? | | ?????????????????????????????????###?????????????? | | ????????????????#????????? ???????#??????????????? | | ????????????????????????? ????#??????????????????? | | ?????????????????????????????????????????????????? | | ?????????????????????????????????????????????????? | | ?????????????????????????#???????????????????????? | | | +----------------------------------------------------+ Best States ------------- Heat Dissipation 25 Energy Generation 12 Energy Capacity 265 Matter Stores 300 Matter Capacity 300 Sight Range 16 Terrain Scan Range 16 Terrain Scan Density 10 Core Shielding 20 Evasion (%) 55 Recoil Reduction 2 Item Schematics ----------------- None Robot Schematics ------------------ None Fabricated ------------ Nothing Alien Tech Used ----------------- None Achievements -------------- None Challenges ------------ None Game ------ Seed TacticalTeleporterActivator Manual? 0 Play Time 00:25:29 Cumulative 26.9 hours Start 2024.08.14 @ 10:12:48 End 2024.08.14 @ 10:36:42 Sessions 1 Manual Loads 0 Difficulty Rogue Special Mode None Game No. 25 Rogue 25 Adventurer 0 Explorer 0 Win Type - Total 0 Types 0/0/0/0/0/0/0/0/0 Lore% 9 Gallery% 26 Achievement% 23 Wizard Run 0 Options --------- Layout 0 ASCII 0 Keyboard 0 Movement Mouse Keybinds 0 Fullscreen 1 Font 24/Smallcaps Map View 38x25 Zoom Use 82% Tactical HUD 1 Map Filters NONE Filters NONE Steam 1 RUN: d5f276f2-de1e-4ea0-a7d5-c5a15e1032b4